[Event "December 19 Early 2023"]
[Site "https://www.chess.com"]
[Date "2023.12.19"]
[Round "8"]
[White "Vincenti, Leonardo"]
[Black "Perossa, Nicolas"]
[Result "1-0"]
[Board "136"]
[TimeControl "180+1"]
[WhiteFideId "28550820"]
[BlackFideId "2850520"]
[WhiteElo "2054"]
[BlackElo "1934"]
[WhiteTeam "ITA"]
[BlackTeam "ITA"]
[WhiteClock "0:00:08"]
[BlackClock "0:00:00"]

1. e4 {[%clk 0:03:00]}  c6 {[%clk 0:01:55]} 2. d4 {[%clk 0:02:59]}  d5 {[%clk 0:01:55]} 3. exd5 {[%clk 0:03:00]}  cxd5 {[%clk 0:01:55]} 4. Bd3 {[%clk 0:03:01]}  g6 {[%clk 0:01:55]} 5. c3 {[%clk 0:03:00]}  Bg7 {[%clk 0:01:56]} 6. Nf3 {[%clk 0:02:59]}  Nc6 {[%clk 0:01:56]} 7. O-O {[%clk 0:02:58]}  Bg4 {[%clk 0:01:57]} 8. Bf4 {[%clk 0:02:57]}  Nf6 {[%clk 0:01:52]} 9. Nbd2 {[%clk 0:02:57]}  O-O {[%clk 0:01:52]} 10. h3 {[%clk 0:02:57]}  Bf5 {[%clk 0:01:48]} 11. Bxf5 {[%clk 0:02:54]}  gxf5 {[%clk 0:01:49]} 12. Re1 {[%clk 0:02:54]}  e6 {[%clk 0:01:48]} 13. Ne5 {[%clk 0:02:54]}  Kh8 {[%clk 0:01:46]} 14. Bg5 {[%clk 0:02:44]}  Qc7 {[%clk 0:01:42]} 15. Bf4 {[%clk 0:02:35]}  Nxe5 {[%clk 0:01:40]} 16. Bxe5 {[%clk 0:02:32]}  Qd8 {[%clk 0:01:22]} 17. Qf3 {[%clk 0:02:26]}  Rg8 {[%clk 0:01:21]} 18. Re2 {[%clk 0:02:20]}  Ne4 {[%clk 0:01:11]} 19. Bxg7+ {[%clk 0:02:18]}  Rxg7 {[%clk 0:01:12]} 20. Nxe4 {[%clk 0:02:09]}  dxe4 {[%clk 0:01:13]} 21. Qf4 {[%clk 0:02:07]}  Qd5 {[%clk 0:01:03]} 22. Qe5 {[%clk 0:01:50]}  Rg8 {[%clk 0:00:21]} 23. g3 {[%clk 0:01:33]}  h5 {[%clk 0:00:08]} 24. h4 {[%clk 0:01:12]}  Kh7 {[%clk 0:00:05]} 25. Kh2 {[%clk 0:01:09]}  Rg6 {[%clk 0:00:03]} 26. b3 {[%clk 0:00:56]}  Rc8 {[%clk 0:00:02]} 27. c4 {[%clk 0:00:56]}  Qxe5 {[%clk 0:00:02]} 28. dxe5 {[%clk 0:00:57]}  Rc5 {[%clk 0:00:02]} 29. Rd1 {[%clk 0:00:48]}  Rc7 {[%clk 0:00:02]} 30. Red2 {[%clk 0:00:45]}  Rg8 {[%clk 0:00:02]} 31. Rd7 {[%clk 0:00:45]}  Rgc8 {[%clk 0:00:02]} 32. Kg2 {[%clk 0:00:40]}  Kg6 {[%clk 0:00:03]} 33. Kf1 {[%clk 0:00:40]}  a6 {[%clk 0:00:02]} 34. Ke2 {[%clk 0:00:39]}  b5 {[%clk 0:00:01]} 35. cxb5 {[%clk 0:00:38]}  axb5 {[%clk 0:00:02]} 36. Rxc7 {[%clk 0:00:32]}  Rxc7 {[%clk 0:00:02]} 37. a4 {[%clk 0:00:21]}  bxa4 {[%clk 0:00:02]} 38. bxa4 {[%clk 0:00:21]}  Rc2+ {[%clk 0:00:02]} 39. Ke3 {[%clk 0:00:22]}  Rc5 {[%clk 0:00:02]} 40. Ra1 {[%clk 0:00:21]}  Ra5 {[%clk 0:00:02]} 41. Kf4 {[%clk 0:00:20]}  Kg7 {[%clk 0:00:01]} 42. Ra3 {[%clk 0:00:19]}  Kf8 {[%clk 0:00:02]} 43. f3 {[%clk 0:00:20]}  exf3 {[%clk 0:00:02]} 44. Kxf3 {[%clk 0:00:20]}  Rxe5 {[%clk 0:00:01]} 45. a5 {[%clk 0:00:20]}  Rd5 {[%clk 0:00:01]} 46. a6 {[%clk 0:00:21]}  Rd8 {[%clk 0:00:02]} 47. a7 {[%clk 0:00:21]}  Ra8 {[%clk 0:00:03]} 48. Kf4 {[%clk 0:00:22]}  Ke7 {[%clk 0:00:03]} 49. Kg5 {[%clk 0:00:22]}  Kd6 {[%clk 0:00:03]} 50. Kxh5 {[%clk 0:00:23]}  Ke5 {[%clk 0:00:02]} 51. Kh6 {[%clk 0:00:20]}  Kf6 {[%clk 0:00:01]} 52. Kh7 {[%clk 0:00:19]}  e5 {[%clk 0:00:01]} 53. h5 {[%clk 0:00:19]}  f4 {[%clk 0:00:01]} 54. gxf4 {[%clk 0:00:18]}  exf4 {[%clk 0:00:02]} 55. h6 {[%clk 0:00:18]}  Kg5 {[%clk 0:00:02]} 56. Ra5+ {[%clk 0:00:17]}  Kg4 {[%clk 0:00:02]} 57. Kg7 {[%clk 0:00:17]}  f3 {[%clk 0:00:03]} 58. h7 {[%clk 0:00:15]}  f2 {[%clk 0:00:02]} 59. h8=Q {[%clk 0:00:15]}  Rxh8 {[%clk 0:00:01]} 60. Kxh8 {[%clk 0:00:16]}  f1=Q {[%clk 0:00:01]} 61. a8=Q {[%clk 0:00:16]}  Qf6+ {[%clk 0:00:01]} 62. Kg8 {[%clk 0:00:14]}  Qg6+ {[%clk 0:00:02]} 63. Kf8 {[%clk 0:00:15]}  Qh6+ {[%clk 0:00:01]} 64. Kxf7 {[%clk 0:00:14]}  Qh7+ {[%clk 0:00:01]} 65. Ke6 {[%clk 0:00:14]}  Qg6+ {[%clk 0:00:01]} 66. Kd5 {[%clk 0:00:15]}  Qf7+ {[%clk 0:00:02]} 67. Kc5 {[%clk 0:00:14]}  Qf2+ {[%clk 0:00:02]} 68. Kb5 {[%clk 0:00:12]}  Qe2+ {[%clk 0:00:02]} 69. Kb6 {[%clk 0:00:12]}  Qe3+ {[%clk 0:00:03]} 70. Kc7 {[%clk 0:00:13]}  Qc3+ {[%clk 0:00:02]} 71. Kb8 {[%clk 0:00:11]}  Qb4+ {[%clk 0:00:01]} 72. Kc8 {[%clk 0:00:12]}  Qc3+ {[%clk 0:00:01]} 73. Kd8 {[%clk 0:00:11]}  Qd2+ {[%clk 0:00:01]} 74. Qd5 {[%clk 0:00:10]}  Qe3 {[%clk 0:00:01]} 75. Ra4+ {[%clk 0:00:08]}  Kg3 {[%clk 0:00:01]} 76. Qd6+ {[%clk 0:00:07]}  Kg2 {[%clk 0:00:01]} 77. Rg4+ {[%clk 0:00:07]}  Kf3 {[%clk 0:00:01]} 78. Qg3+ {[%clk 0:00:07]}  Ke2 {[%clk 0:00:02]} 79. Qxe3+ {[%clk 0:00:07]}  Kxe3 {[%clk 0:00:02]} 80. Ke7 {[%clk 0:00:07]}  Kf3 {[%clk 0:00:03]} 81. Ra4 {[%clk 0:00:07]}  Ke3 {[%clk 0:00:04]} 82. Ke6 {[%clk 0:00:08]}  Kd3 {[%clk 0:00:05]} 83. Ke5 {[%clk 0:00:08]}  Kc3 {[%clk 0:00:00]} 84. Rh4 {[%clk 0:00:08]} 1-0

[Event "December 19 Early 2023"]
[Site "https://www.chess.com"]
[Date "2023.12.19"]
[Round "8"]
[White "Piddubna, Bozhena"]
[Black "Porozhnyak, Maya"]
[Result "1-0"]
[Board "138"]
[TimeControl "180+1"]
[WhiteFideId "34109293"]
[BlackFideId "34115843"]
[WhiteElo "1874"]
[BlackElo "1932"]
[WhiteTeam "UKR"]
[BlackTeam "RUS"]
[WhiteClock "0:00:03"]
[BlackClock "0:00:00"]

1. d4 {[%clk 0:03:00]}  c5 {[%clk 0:03:00]} 2. d5 {[%clk 0:02:59]}  g6 {[%clk 0:03:00]} 3. e4 {[%clk 0:02:57]}  Bg7 {[%clk 0:03:00]} 4. Nf3 {[%clk 0:02:57]}  a6 {[%clk 0:03:00]} 5. e5 {[%clk 0:02:56]}  b5 {[%clk 0:02:56]} 6. c4 {[%clk 0:02:56]}  bxc4 {[%clk 0:02:43]} 7. Bxc4 {[%clk 0:02:55]}  d6 {[%clk 0:02:44]} 8. exd6 {[%clk 0:02:48]}  exd6 {[%clk 0:02:45]} 9. O-O {[%clk 0:02:46]}  Ne7 {[%clk 0:02:42]} 10. h3 {[%clk 0:02:43]}  O-O {[%clk 0:02:42]} 11. Nc3 {[%clk 0:02:42]}  Nd7 {[%clk 0:02:40]} 12. Bf4 {[%clk 0:02:34]}  Nb6 {[%clk 0:02:36]} 13. Qe2 {[%clk 0:02:19]}  Nxc4 {[%clk 0:02:30]} 14. Qxc4 {[%clk 0:02:19]}  Rb8 {[%clk 0:02:30]} 15. Bc1 {[%clk 0:01:18]}  Nf5 {[%clk 0:02:12]} 16. a3 {[%clk 0:01:06]}  Nd4 {[%clk 0:01:49]} 17. Nxd4 {[%clk 0:01:06]}  Bxd4 {[%clk 0:01:50]} 18. b4 {[%clk 0:00:44]}  Qh4 {[%clk 0:01:47]} 19. Be3 {[%clk 0:00:27]}  Re8 {[%clk 0:01:01]} 20. Rfe1 {[%clk 0:00:18]}  Bf5 {[%clk 0:00:44]} 21. Bxd4 {[%clk 0:00:16]}  cxd4 {[%clk 0:00:45]} 22. Ne2 {[%clk 0:00:14]}  Qg5 {[%clk 0:00:31]} 23. Ng3 {[%clk 0:00:13]}  d3 {[%clk 0:00:28]} 24. Red1 {[%clk 0:00:06]}  d2 {[%clk 0:00:24]} 25. Nxf5 {[%clk 0:00:05]}  gxf5 {[%clk 0:00:25]} 26. Qd3 {[%clk 0:00:05]}  Re4 {[%clk 0:00:18]} 27. Qxd2 {[%clk 0:00:03]}  Qg6 {[%clk 0:00:19]} 28. Qd3 {[%clk 0:00:02]}  Rbe8 {[%clk 0:00:19]} 29. Qf3 {[%clk 0:00:03]}  Kf8 {[%clk 0:00:14]} 30. Rac1 {[%clk 0:00:03]}  R8e5 {[%clk 0:00:13]} 31. Rc8+ {[%clk 0:00:03]}  Kg7 {[%clk 0:00:14]} 32. Rcc1 {[%clk 0:00:03]}  h5 {[%clk 0:00:13]} 33. Rc8 {[%clk 0:00:03]}  Re1+ {[%clk 0:00:13]} 34. Rxe1 {[%clk 0:00:03]}  Rxe1+ {[%clk 0:00:14]} 35. Kh2 {[%clk 0:00:04]}  h4 {[%clk 0:00:08]} 36. Rc4 {[%clk 0:00:05]}  Qf6 {[%clk 0:00:07]} 37. Rf4 {[%clk 0:00:04]}  Qe5 {[%clk 0:00:07]} 38. g3 {[%clk 0:00:04]}  hxg3+ {[%clk 0:00:07]} 39. Qxg3+ {[%clk 0:00:04]}  Kf6 {[%clk 0:00:07]} 40. Qh4+ {[%clk 0:00:04]}  Kg7 {[%clk 0:00:07]} 41. Qg5+ {[%clk 0:00:04]}  Kf8 {[%clk 0:00:07]} 42. Qd8+ {[%clk 0:00:03]}  Kg7 {[%clk 0:00:06]} 43. Qg5+ {[%clk 0:00:04]}  Kh8 {[%clk 0:00:00]} 44. Qg3 {[%clk 0:00:03]} 1-0

[Event "December 19 Early 2023"]
[Site "https://www.chess.com"]
[Date "2023.12.19"]
[Round "8"]
[White "Liu, Casper"]
[Black "Feliz Dotel, Dewar Bienvenido"]
[Result "1-0"]
[Board "139"]
[TimeControl "180+1"]
[WhiteFideId "1454153"]
[BlackFideId "6402801"]
[WhiteElo "2221"]
[BlackElo "2069"]
[WhiteTeam "DEN"]
[BlackTeam "DOM"]
[WhiteClock "0:01:15"]
[BlackClock "0:00:00"]

1. f4 {[%clk 0:02:58]}  c5 {[%clk 0:02:55]} 2. Nf3 {[%clk 0:02:59]}  d5 {[%clk 0:02:55]} 3. e3 {[%clk 0:02:59]}  Bg4 {[%clk 0:02:55]} 4. g3 {[%clk 0:02:59]}  e6 {[%clk 0:02:53]} 5. Bg2 {[%clk 0:02:59]}  Nc6 {[%clk 0:02:53]} 6. O-O {[%clk 0:02:59]}  Nf6 {[%clk 0:02:53]} 7. h3 {[%clk 0:02:59]}  Bh5 {[%clk 0:02:47]} 8. g4 {[%clk 0:02:58]}  Bg6 {[%clk 0:02:47]} 9. d3 {[%clk 0:02:59]}  Bd6 {[%clk 0:02:31]} 10. b3 {[%clk 0:02:53]}  Qc7 {[%clk 0:02:24]} 11. Bb2 {[%clk 0:02:53]}  O-O {[%clk 0:02:09]} 12. Nc3 {[%clk 0:02:38]}  a6 {[%clk 0:02:07]} 13. Ne2 {[%clk 0:02:38]}  Rfe8 {[%clk 0:02:01]} 14. Nh4 {[%clk 0:02:26]}  Rad8 {[%clk 0:01:58]} 15. Kh1 {[%clk 0:02:01]}  Be7 {[%clk 0:01:57]} 16. Ng3 {[%clk 0:01:49]}  Nd7 {[%clk 0:01:47]} 17. g5 {[%clk 0:01:47]}  f5 {[%clk 0:01:36]} 18. Nxg6 {[%clk 0:01:39]}  hxg6 {[%clk 0:01:36]} 19. h4 {[%clk 0:01:40]}  e5 {[%clk 0:01:34]} 20. Bxd5+ {[%clk 0:01:39]}  Kf8 {[%clk 0:01:28]} 21. h5 {[%clk 0:01:38]}  Qd6 {[%clk 0:01:24]} 22. c4 {[%clk 0:01:21]}  Nb4 {[%clk 0:01:17]} 23. hxg6 {[%clk 0:01:20]}  Qxg6 {[%clk 0:01:11]} 24. fxe5 {[%clk 0:01:19]}  Nxd5 {[%clk 0:00:58]} 25. cxd5 {[%clk 0:01:16]}  Bxg5 {[%clk 0:00:58]} 26. Rxf5+ {[%clk 0:01:13]}  Kg8 {[%clk 0:00:56]} 27. Qg4 {[%clk 0:01:14]}  Qh6+ {[%clk 0:00:53]} 28. Kg2 {[%clk 0:01:15]}  Bxe3 {[%clk 0:00:00]} 29. Rh1 {[%clk 0:01:15]} 1-0

[Event "December 19 Early 2023"]
[Site "https://www.chess.com"]
[Date "2023.12.19"]
[Round "8"]
[White "Jaque Gutierrez, Matias"]
[Black "Hartikainen, Jarmo"]
[Result "1-0"]
[Board "140"]
[TimeControl "180+1"]
[WhiteFideId "3426980"]
[BlackFideId "503134"]
[WhiteElo "2040"]
[BlackElo "2158"]
[WhiteTeam "CHI"]
[BlackTeam "FIN"]
[WhiteClock "0:00:10"]
[BlackClock "0:00:01"]

1. c4 {[%clk 0:03:00]}  c5 {[%clk 0:02:56]} 2. g3 {[%clk 0:03:00]}  g6 {[%clk 0:02:56]} 3. Bg2 {[%clk 0:03:00]}  Bg7 {[%clk 0:02:57]} 4. Nc3 {[%clk 0:03:00]}  Nc6 {[%clk 0:02:56]} 5. a3 {[%clk 0:03:00]}  Nf6 {[%clk 0:02:56]} 6. Rb1 {[%clk 0:02:54]}  a5 {[%clk 0:02:54]} 7. e4 {[%clk 0:02:53]}  O-O {[%clk 0:02:52]} 8. Nge2 {[%clk 0:02:53]}  e5 {[%clk 0:02:45]} 9. d3 {[%clk 0:02:52]}  d6 {[%clk 0:02:44]} 10. O-O {[%clk 0:02:51]}  Nd4 {[%clk 0:02:40]} 11. f4 {[%clk 0:02:41]}  Bg4 {[%clk 0:02:16]} 12. h3 {[%clk 0:02:39]}  Bxe2 {[%clk 0:02:15]} 13. Nxe2 {[%clk 0:02:39]}  Nh5 {[%clk 0:01:58]} 14. Nxd4 {[%clk 0:02:25]}  cxd4 {[%clk 0:01:52]} 15. Kh2 {[%clk 0:02:11]}  f5 {[%clk 0:01:46]} 16. exf5 {[%clk 0:02:09]}  exf4 {[%clk 0:01:42]} 17. Bxf4 {[%clk 0:01:56]}  Nxf4 {[%clk 0:01:40]} 18. Rxf4 {[%clk 0:01:47]}  Rxf5 {[%clk 0:01:40]} 19. Rxf5 {[%clk 0:01:46]}  gxf5 {[%clk 0:01:40]} 20. Qf3 {[%clk 0:01:45]}  f4 {[%clk 0:01:12]} 21. Qxf4 {[%clk 0:01:40]}  Be5 {[%clk 0:00:58]} 22. Qg4+ {[%clk 0:01:27]}  Kh8 {[%clk 0:00:58]} 23. Rf1 {[%clk 0:01:25]}  Qg8 {[%clk 0:00:51]} 24. Bd5 {[%clk 0:01:17]}  Qxg4 {[%clk 0:00:49]} 25. hxg4 {[%clk 0:01:18]}  Rb8 {[%clk 0:00:37]} 26. a4 {[%clk 0:01:08]}  b6 {[%clk 0:00:35]} 27. Rf7 {[%clk 0:01:08]}  Bg7 {[%clk 0:00:25]} 28. Be4 {[%clk 0:01:02]}  h6 {[%clk 0:00:25]} 29. Rd7 {[%clk 0:00:57]}  Be5 {[%clk 0:00:18]} 30. Rh7+ {[%clk 0:00:57]}  Kg8 {[%clk 0:00:18]} 31. Rxh6 {[%clk 0:00:57]}  Rf8 {[%clk 0:00:18]} 32. Kg2 {[%clk 0:00:56]}  Kg7 {[%clk 0:00:14]} 33. Rh7+ {[%clk 0:00:55]}  Kf6 {[%clk 0:00:14]} 34. Rb7 {[%clk 0:00:53]}  Kg5 {[%clk 0:00:14]} 35. Rxb6 {[%clk 0:00:48]}  Rh8 {[%clk 0:00:14]} 36. Rb7 {[%clk 0:00:44]}  Rf8 {[%clk 0:00:12]} 37. Bf5 {[%clk 0:00:38]}  Rh8 {[%clk 0:00:11]} 38. b4 {[%clk 0:00:31]}  axb4 {[%clk 0:00:10]} 39. Rxb4 {[%clk 0:00:31]}  Ra8 {[%clk 0:00:11]} 40. Bd7 {[%clk 0:00:29]}  Ra7 {[%clk 0:00:11]} 41. Bc6 {[%clk 0:00:20]}  Kxg4 {[%clk 0:00:11]} 42. Rb8 {[%clk 0:00:20]}  Kf5 {[%clk 0:00:09]} 43. Ra8 {[%clk 0:00:17]}  Rc7 {[%clk 0:00:08]} 44. Be4+ {[%clk 0:00:16]}  Kf6 {[%clk 0:00:07]} 45. a5 {[%clk 0:00:16]}  Rg7 {[%clk 0:00:07]} 46. a6 {[%clk 0:00:11]}  Rxg3+ {[%clk 0:00:07]} 47. Kf2 {[%clk 0:00:12]}  Rg7 {[%clk 0:00:06]} 48. a7 {[%clk 0:00:10]}  Bg3+ {[%clk 0:00:07]} 49. Kf3 {[%clk 0:00:10]}  Kg5 {[%clk 0:00:05]} 50. Kxg3 {[%clk 0:00:09]}  Rf7 {[%clk 0:00:05]} 51. Rg8+ {[%clk 0:00:09]}  Kf6 {[%clk 0:00:01]} 52. a8=Q {[%clk 0:00:10]} 1-0

[Event "December 19 Early 2023"]
[Site "https://www.chess.com"]
[Date "2023.12.19"]
[Round "8"]
[White "Caceres Benitez, Arturo Eduardo"]
[Black "Sailer, Mike"]
[Result "0-1"]
[Board "143"]
[TimeControl "180+1"]
[WhiteFideId "3710769"]
[BlackFideId "2012901"]
[WhiteElo "2045"]
[BlackElo "2109"]
[WhiteTeam "PAR"]
[BlackTeam "USA"]
[WhiteClock "0:00:02"]
[BlackClock "0:00:20"]

1. e4 {[%clk 0:02:38]}  d5 {[%clk 0:02:58]} 2. Bc4 {[%clk 0:02:38]}  dxc4 {[%clk 0:02:57]} 3. Nc3 {[%clk 0:02:32]}  Nc6 {[%clk 0:02:55]} 4. Nge2 {[%clk 0:02:31]}  Bg4 {[%clk 0:02:54]} 5. O-O {[%clk 0:02:32]}  e5 {[%clk 0:02:45]} 6. f3 {[%clk 0:02:31]}  Be6 {[%clk 0:02:43]} 7. b3 {[%clk 0:02:31]}  Bc5+ {[%clk 0:02:40]} 8. Kh1 {[%clk 0:01:55]}  Nf6 {[%clk 0:02:29]} 9. bxc4 {[%clk 0:00:56]}  Bxc4 {[%clk 0:02:26]} 10. d3 {[%clk 0:00:57]}  Be6 {[%clk 0:02:23]} 11. Rb1 {[%clk 0:00:56]}  O-O {[%clk 0:02:13]} 12. Bg5 {[%clk 0:00:47]}  Nd4 {[%clk 0:02:04]} 13. Nxd4 {[%clk 0:00:45]}  Bxd4 {[%clk 0:01:57]} 14. Ne2 {[%clk 0:00:41]}  Bxa2 {[%clk 0:01:53]} 15. Rxb7 {[%clk 0:00:38]}  Bb6 {[%clk 0:01:53]} 16. f4 {[%clk 0:00:38]}  exf4 {[%clk 0:01:25]} 17. Rxf4 {[%clk 0:00:39]}  Qd6 {[%clk 0:01:11]} 18. Ng3 {[%clk 0:00:24]}  Be6 {[%clk 0:00:57]} 19. Rxf6 {[%clk 0:00:20]}  gxf6 {[%clk 0:00:50]} 20. Bxf6 {[%clk 0:00:20]}  Qf4 {[%clk 0:00:42]} 21. e5 {[%clk 0:00:14]}  Bd5 {[%clk 0:00:36]} 22. Nh5 {[%clk 0:00:12]}  Qf5 {[%clk 0:00:26]} 23. Qe1 {[%clk 0:00:04]}  Qxh5 {[%clk 0:00:21]} 24. Qg3+ {[%clk 0:00:02]}  Qg6 {[%clk 0:00:20]} 0-1

[Event "December 19 Early 2023"]
[Site "https://www.chess.com"]
[Date "2023.12.19"]
[Round "8"]
[White "Kornyukov, Alexey"]
[Black "Hrebenshchykova, Yelyzaveta"]
[Result "0-1"]
[Board "144"]
[TimeControl "180+1"]
[WhiteFideId "4150457"]
[BlackFideId "14159899"]
[WhiteElo "2352"]
[BlackElo "2045"]
[WhiteTeam "RUS"]
[BlackTeam "UKR"]
[WhiteClock "0:00:11"]
[BlackClock "0:00:08"]

1. e4 {[%clk 0:03:00]}  e5 {[%clk 0:02:58]} 2. Nf3 {[%clk 0:03:00]}  Nc6 {[%clk 0:02:59]} 3. Bc4 {[%clk 0:02:57]}  Nf6 {[%clk 0:02:58]} 4. Nc3 {[%clk 0:02:55]}  Be7 {[%clk 0:02:54]} 5. O-O {[%clk 0:02:54]}  O-O {[%clk 0:02:53]} 6. d3 {[%clk 0:02:54]}  d6 {[%clk 0:02:51]} 7. Bg5 {[%clk 0:02:48]}  Na5 {[%clk 0:02:45]} 8. Bb3 {[%clk 0:02:44]}  Nxb3 {[%clk 0:02:44]} 9. axb3 {[%clk 0:02:43]}  c6 {[%clk 0:02:44]} 10. Ne2 {[%clk 0:02:41]}  h6 {[%clk 0:02:36]} 11. Bh4 {[%clk 0:02:37]}  Be6 {[%clk 0:02:33]} 12. Bxf6 {[%clk 0:02:15]}  Bxf6 {[%clk 0:02:33]} 13. Ng3 {[%clk 0:02:15]}  g6 {[%clk 0:02:29]} 14. c3 {[%clk 0:02:14]}  Bg7 {[%clk 0:02:02]} 15. b4 {[%clk 0:02:04]}  a6 {[%clk 0:01:56]} 16. c4 {[%clk 0:01:59]}  d5 {[%clk 0:01:49]} 17. exd5 {[%clk 0:01:55]}  cxd5 {[%clk 0:01:50]} 18. Qe2 {[%clk 0:01:52]}  Qc7 {[%clk 0:01:33]} 19. Rac1 {[%clk 0:01:45]}  dxc4 {[%clk 0:01:31]} 20. dxc4 {[%clk 0:01:44]}  f5 {[%clk 0:01:19]} 21. Rfe1 {[%clk 0:01:25]}  e4 {[%clk 0:01:18]} 22. Nf1 {[%clk 0:01:19]}  Rad8 {[%clk 0:01:15]} 23. Nh4 {[%clk 0:01:11]}  Bf7 {[%clk 0:01:14]} 24. Ne3 {[%clk 0:01:03]}  Bf6 {[%clk 0:01:03]} 25. Nd5 {[%clk 0:00:57]}  Bxd5 {[%clk 0:01:00]} 26. cxd5 {[%clk 0:00:57]}  Qf7 {[%clk 0:00:57]} 27. g3 {[%clk 0:00:50]}  Bxh4 {[%clk 0:00:57]} 28. gxh4 {[%clk 0:00:50]}  Rxd5 {[%clk 0:00:58]} 29. h5 {[%clk 0:00:46]}  gxh5 {[%clk 0:00:50]} 30. Rc4 {[%clk 0:00:43]}  Kh8 {[%clk 0:00:49]} 31. Rec1 {[%clk 0:00:42]}  Rg8+ {[%clk 0:00:49]} 32. Kh1 {[%clk 0:00:40]}  Qg7 {[%clk 0:00:49]} 33. Qf1 {[%clk 0:00:24]}  Rd6 {[%clk 0:00:42]} 34. Qh3 {[%clk 0:00:22]}  Rg6 {[%clk 0:00:41]} 35. Qf1 {[%clk 0:00:18]}  Rg4 {[%clk 0:00:35]} 36. Rc7 {[%clk 0:00:18]}  Qg5 {[%clk 0:00:32]} 37. h3 {[%clk 0:00:14]}  Rh4 {[%clk 0:00:18]} 38. Kh2 {[%clk 0:00:12]}  Qf4+ {[%clk 0:00:18]} 39. Kh1 {[%clk 0:00:12]}  e3 {[%clk 0:00:09]} 40. fxe3 {[%clk 0:00:12]}  Qxf1+ {[%clk 0:00:07]} 41. Rxf1 {[%clk 0:00:11]}  Rxh3# {[%clk 0:00:08]} 0-1

[Event "December 19 Early 2023"]
[Site "https://www.chess.com"]
[Date "2023.12.19"]
[Round "8"]
[White "Fernandez Hernandez, Gerardo"]
[Black "Dmitrenko, Viktor"]
[Result "0-1"]
[Board "146"]
[TimeControl "180+1"]
[WhiteFideId "2207400"]
[BlackFideId "14110270"]
[WhiteElo "2269"]
[BlackElo "2292"]
[WhiteTeam "ESP"]
[BlackTeam "UKR"]
[WhiteClock "0:00:37"]
[BlackClock "0:01:25"]

1. e4 {[%clk 0:03:00]}  c5 {[%clk 0:02:59]} 2. d3 {[%clk 0:03:00]}  g6 {[%clk 0:02:58]} 3. g3 {[%clk 0:03:01]}  Bg7 {[%clk 0:02:58]} 4. Bg2 {[%clk 0:03:01]}  Nc6 {[%clk 0:02:59]} 5. f4 {[%clk 0:03:02]}  e6 {[%clk 0:02:56]} 6. Nf3 {[%clk 0:03:02]}  Nge7 {[%clk 0:02:57]} 7. O-O {[%clk 0:03:02]}  O-O {[%clk 0:02:57]} 8. c3 {[%clk 0:03:02]}  d5 {[%clk 0:02:44]} 9. e5 {[%clk 0:03:02]}  f6 {[%clk 0:02:27]} 10. d4 {[%clk 0:02:57]}  cxd4 {[%clk 0:02:24]} 11. cxd4 {[%clk 0:02:56]}  fxe5 {[%clk 0:02:24]} 12. fxe5 {[%clk 0:02:46]}  Qb6 {[%clk 0:02:24]} 13. g4 {[%clk 0:02:22]}  Nxe5 {[%clk 0:02:19]} 14. Nxe5 {[%clk 0:02:19]}  Bxe5 {[%clk 0:02:11]} 15. Rxf8+ {[%clk 0:02:18]}  Kxf8 {[%clk 0:02:12]} 16. Bh6+ {[%clk 0:02:15]}  Kg8 {[%clk 0:02:08]} 17. Be3 {[%clk 0:01:46]}  Nc6 {[%clk 0:01:55]} 18. dxe5 {[%clk 0:01:35]}  Qxe3+ {[%clk 0:01:54]} 19. Kh1 {[%clk 0:01:35]}  Nxe5 {[%clk 0:01:51]} 20. Bxd5 {[%clk 0:01:16]}  exd5 {[%clk 0:01:40]} 21. Qxd5+ {[%clk 0:01:17]}  Kg7 {[%clk 0:01:39]} 22. Qd8 {[%clk 0:00:57]}  Qf3+ {[%clk 0:01:30]} 23. Kg1 {[%clk 0:00:57]}  Qxg4+ {[%clk 0:01:31]} 24. Kh1 {[%clk 0:00:48]}  Qf3+ {[%clk 0:01:30]} 25. Kg1 {[%clk 0:00:48]}  Qe3+ {[%clk 0:01:31]} 26. Kh1 {[%clk 0:00:47]}  Qe4+ {[%clk 0:01:27]} 27. Kg1 {[%clk 0:00:47]}  Qd4+ {[%clk 0:01:25]} 28. Kh1 {[%clk 0:00:37]}  Qxd8 {[%clk 0:01:25]} 0-1

[Event "December 19 Early 2023"]
[Site "https://www.chess.com"]
[Date "2023.12.19"]
[Round "8"]
[White "Gurevich, Dmitry"]
[Black "Clawitter, Craig"]
[Result "1-0"]
[Board "148"]
[TimeControl "180+1"]
[WhiteFideId "2000407"]
[BlackFideId "2023105"]
[WhiteElo "2506"]
[BlackElo "2258"]
[WhiteTeam "USA"]
[BlackTeam "USA"]
[WhiteClock "0:00:01"]
[BlackClock "0:00:00"]

1. d4 {[%clk 0:03:00]}  e6 {[%clk 0:02:58]} 2. c4 {[%clk 0:03:00]}  Nf6 {[%clk 0:02:58]} 3. g3 {[%clk 0:02:59]}  d5 {[%clk 0:02:58]} 4. Bg2 {[%clk 0:02:58]}  Be7 {[%clk 0:02:59]} 5. Nf3 {[%clk 0:02:58]}  O-O {[%clk 0:02:59]} 6. Nc3 {[%clk 0:02:58]}  dxc4 {[%clk 0:02:55]} 7. Ne5 {[%clk 0:02:56]}  c5 {[%clk 0:02:41]} 8. dxc5 {[%clk 0:02:52]}  Qa5 {[%clk 0:02:33]} 9. Nxc4 {[%clk 0:02:39]}  Qxc5 {[%clk 0:02:33]} 10. Qb3 {[%clk 0:02:36]}  Nc6 {[%clk 0:02:27]} 11. Be3 {[%clk 0:02:28]}  Qb4 {[%clk 0:02:27]} 12. O-O {[%clk 0:02:22]}  Bd7 {[%clk 0:02:22]} 13. Rfd1 {[%clk 0:02:09]}  Rfd8 {[%clk 0:02:21]} 14. Qxb4 {[%clk 0:02:04]}  Bxb4 {[%clk 0:02:14]} 15. Nd6 {[%clk 0:01:52]}  Bxd6 {[%clk 0:01:58]} 16. Rxd6 {[%clk 0:01:49]}  Be8 {[%clk 0:01:59]} 17. Rxd8 {[%clk 0:01:41]}  Rxd8 {[%clk 0:01:57]} 18. Rc1 {[%clk 0:01:35]}  a6 {[%clk 0:01:31]} 19. b3 {[%clk 0:01:30]}  e5 {[%clk 0:01:06]} 20. Na4 {[%clk 0:01:15]}  Nd4 {[%clk 0:01:00]} 21. Bxd4 {[%clk 0:01:10]}  Rxd4 {[%clk 0:00:50]} 22. Bxb7 {[%clk 0:01:04]}  Bxa4 {[%clk 0:00:45]} 23. bxa4 {[%clk 0:01:01]}  Kf8 {[%clk 0:00:39]} 24. Bxa6 {[%clk 0:01:01]}  Rxa4 {[%clk 0:00:33]} 25. Bc4 {[%clk 0:00:58]}  Ne4 {[%clk 0:00:10]} 26. Bb3 {[%clk 0:00:53]}  Ra7 {[%clk 0:00:10]} 27. Rc2 {[%clk 0:00:48]}  Nd6 {[%clk 0:00:10]} 28. f3 {[%clk 0:00:42]}  Nf5 {[%clk 0:00:10]} 29. Rc5 {[%clk 0:00:36]}  Nd4 {[%clk 0:00:09]} 30. Rxe5 {[%clk 0:00:32]}  Nxb3 {[%clk 0:00:09]} 31. axb3 {[%clk 0:00:31]}  Ra2 {[%clk 0:00:08]} 32. Kf2 {[%clk 0:00:29]}  Rb2 {[%clk 0:00:08]} 33. Rb5 {[%clk 0:00:27]}  g6 {[%clk 0:00:08]} 34. h4 {[%clk 0:00:25]}  h5 {[%clk 0:00:08]} 35. Rb7 {[%clk 0:00:23]}  Kg7 {[%clk 0:00:08]} 36. g4 {[%clk 0:00:21]}  hxg4 {[%clk 0:00:08]} 37. fxg4 {[%clk 0:00:21]}  Kf6 {[%clk 0:00:07]} 38. g5+ {[%clk 0:00:18]}  Ke6 {[%clk 0:00:08]} 39. Rb6+ {[%clk 0:00:17]}  Ke7 {[%clk 0:00:08]} 40. Kf3 {[%clk 0:00:16]}  Rb1 {[%clk 0:00:06]} 41. b4 {[%clk 0:00:13]}  Rf1+ {[%clk 0:00:05]} 42. Kg3 {[%clk 0:00:11]}  Rg1+ {[%clk 0:00:04]} 43. Kf3 {[%clk 0:00:09]}  Rf1+ {[%clk 0:00:05]} 44. Ke4 {[%clk 0:00:07]}  Rh1 {[%clk 0:00:04]} 45. Ke5 {[%clk 0:00:05]}  Rxh4 {[%clk 0:00:04]} 46. Rb7+ {[%clk 0:00:04]}  Kf8 {[%clk 0:00:04]} 47. e3 {[%clk 0:00:04]}  Kg7 {[%clk 0:00:04]} 48. b5 {[%clk 0:00:03]}  Rb4 {[%clk 0:00:04]} 49. b6 {[%clk 0:00:02]}  Rb1 {[%clk 0:00:03]} 50. Kd6 {[%clk 0:00:02]}  Rd1+ {[%clk 0:00:03]} 51. Kc7 {[%clk 0:00:01]}  Rc1+ {[%clk 0:00:03]} 52. Kb8 {[%clk 0:00:01]}  Re1 {[%clk 0:00:03]} 53. Rc7 {[%clk 0:00:01]}  Rxe3 {[%clk 0:00:03]} 54. b7 {[%clk 0:00:01]}  Rb3 {[%clk 0:00:02]} 55. Rc8 {[%clk 0:00:01]}  f5 {[%clk 0:00:01]} 56. Kc7 {[%clk 0:00:02]}  Rc3+ {[%clk 0:00:00]} 57. Kd7 {[%clk 0:00:01]} 1-0